[Event "Late-Titled-Tuesday-Blitz-February-20-2024"]
[Site "Chess.com"]
[Date "2024.02.20"]
[Round "5"]
[White "expii"]
[Black "wild3000"]
[Result "0-1"]
[WhiteElo "2158"]
[BlackElo "2393"]
[TimeControl "180+1"]
[EndTime "14:55:52 PST"]
[Termination "wild3000 won by resignation"]

1. e4 {[%clk 0:01:53.8]} 1... d6 {[%clk 0:02:37.9]} 2. d4 {[%clk 0:01:47.4]}
2... Nf6 {[%clk 0:02:36.7]} 3. Nc3 {[%clk 0:01:45.9]} 3... a6 {[%clk 0:02:36.3]}
4. Nf3 {[%clk 0:01:43.2]} 4... Bg4 {[%clk 0:02:34.6]} 5. Be2 {[%clk 0:01:33.2]}
5... e6 {[%clk 0:02:34.2]} 6. O-O {[%clk 0:01:20.3]} 6... Be7 {[%clk 0:02:33.9]}
7. h3 {[%clk 0:01:13.1]} 7... Bh5 {[%clk 0:02:32.2]} 8. Be3 {[%clk 0:01:10.2]}
8... O-O {[%clk 0:02:28.8]} 9. Qd2 {[%clk 0:00:59.8]} 9... Nc6 {[%clk
0:02:19.9]} 10. Rad1 {[%clk 0:00:56.5]} 10... b5 {[%clk 0:02:18.3]} 11. a3
{[%clk 0:00:50.9]} 11... d5 {[%clk 0:02:13.1]} 12. e5 {[%clk 0:00:50.8]} 12...
Ne4 {[%clk 0:02:13.1]} 13. Nxe4 {[%clk 0:00:49]} 13... dxe4 {[%clk 0:02:14]} 14.
Ne1 {[%clk 0:00:49.3]} 14... Bg6 {[%clk 0:02:10.2]} 15. c3 {[%clk 0:00:49.6]}
15... Rb8 {[%clk 0:02:06]} 16. Nc2 {[%clk 0:00:49.9]} 16... a5 {[%clk
0:02:05.7]} 17. b4 {[%clk 0:00:49.7]} 17... a4 {[%clk 0:01:59.8]} 18. f3 {[%clk
0:00:49.8]} 18... Na7 {[%clk 0:01:55]} 19. fxe4 {[%clk 0:00:48.9]} 19... Bxe4
{[%clk 0:01:55.9]} 20. Bf3 {[%clk 0:00:49]} 20... Bxf3 {[%clk 0:01:50.6]} 21.
Rxf3 {[%clk 0:00:49.9]} 21... c6 {[%clk 0:01:49.9]} 22. Rdf1 {[%clk 0:00:48.2]}
22... Nc8 {[%clk 0:01:47.9]} 23. Ne1 {[%clk 0:00:48.4]} 23... Nb6 {[%clk
0:01:47]} 24. Nc2 {[%clk 0:00:48.8]} 24... Nc4 {[%clk 0:01:43.8]} 25. Qc1 {[%clk
0:00:48.8]} 25... Qd5 {[%clk 0:01:37.2]} 26. Ne1 {[%clk 0:00:48]} 26... Qe4
{[%clk 0:01:28.6]} 27. Bd2 {[%clk 0:00:47.4]} 27... f5 {[%clk 0:01:23.8]} 28.
Nd3 {[%clk 0:00:46.1]} 28... Nxd2 {[%clk 0:01:09]} 29. Qxd2 {[%clk 0:00:45.8]}
29... g5 {[%clk 0:01:08.7]} 30. Nc5 {[%clk 0:00:44.5]} 30... Bxc5 {[%clk
0:01:07.1]} 31. bxc5 {[%clk 0:00:45.4]} 31... h6 {[%clk 0:01:03.5]} 32. Re1
{[%clk 0:00:41.8]} 32... Qd5 {[%clk 0:01:03]} 33. Rg3 {[%clk 0:00:40]} 33... Kf7
{[%clk 0:01:00.2]} 34. Rf3 {[%clk 0:00:38.5]} 34... Ke7 {[%clk 0:00:58.9]} 35.
Kf2 {[%clk 0:00:37.8]} 35... Rf7 {[%clk 0:00:52.6]} 36. h4 {[%clk 0:00:37.7]}
36... Rg8 {[%clk 0:00:51.6]} 37. hxg5 {[%clk 0:00:37.2]} 37... hxg5 {[%clk
0:00:52.5]} 38. Rg3 {[%clk 0:00:35.2]} 38... f4 {[%clk 0:00:51.6]} 39. Rg4
{[%clk 0:00:34]} 39... Rh7 {[%clk 0:00:49.6]} 40. Qe2 {[%clk 0:00:32.5]} 40...
Rh4 {[%clk 0:00:44.9]} 41. Rxh4 {[%clk 0:00:32]} 41... gxh4 {[%clk 0:00:45.8]}
42. Qe4 {[%clk 0:00:32.3]} 42... Qxe4 {[%clk 0:00:41.3]} 43. Rxe4 {[%clk
0:00:33.2]} 43... Rg3 {[%clk 0:00:40.8]} 44. Rxf4 {[%clk 0:00:31.4]} 44... Rxc3
{[%clk 0:00:40]} 45. Rxh4 {[%clk 0:00:31.4]} 45... Rxa3 {[%clk 0:00:39]} 46.
Rh7+ {[%clk 0:00:31.5]} 46... Kd8 {[%clk 0:00:38.7]} 47. Rh8+ {[%clk 0:00:29.8]}
47... Kc7 {[%clk 0:00:38.5]} 48. Rh7+ {[%clk 0:00:29.4]} 48... Kc8 {[%clk
0:00:38.1]} 49. Rh8+ {[%clk 0:00:29.1]} 49... Kb7 {[%clk 0:00:38.3]} 50. Re8
{[%clk 0:00:29]} 50... Rd3 {[%clk 0:00:37.4]} 51. Rxe6 {[%clk 0:00:28.8]} 51...
Rxd4 {[%clk 0:00:37.2]} 52. Re7+ {[%clk 0:00:28.4]} 52... Kc8 {[%clk 0:00:36.7]}
53. Re8+ {[%clk 0:00:27.7]} 53... Kd7 {[%clk 0:00:36.2]} 54. Ra8 {[%clk
0:00:27]} 54... Ke6 {[%clk 0:00:35.2]} 55. Ra6 {[%clk 0:00:26.4]} 55... Kd5
{[%clk 0:00:33.6]} 56. e6 {[%clk 0:00:26.7]} 56... Re4 {[%clk 0:00:33.6]} 57.
Ra8 {[%clk 0:00:24.6]} 57... Rxe6 {[%clk 0:00:33.5]} 58. g4 {[%clk 0:00:25]}
58... Kxc5 {[%clk 0:00:32.9]} 59. g5 {[%clk 0:00:25.9]} 59... Rg6 {[%clk
0:00:32.3]} 60. Kf3 {[%clk 0:00:26.8]} 60... Rxg5 {[%clk 0:00:32.3]} 0-1

[Event "Late-Titled-Tuesday-Blitz-February-20-2024"]
[Site "Chess.com"]
[Date "2024.02.20"]
[Round "5"]
[White "SaqoChess_Twitch"]
[Black "Zhigalko_Sergei"]
[Result "0-1"]
[WhiteElo "2635"]
[BlackElo "2936"]
[TimeControl "180+1"]
[EndTime "14:55:55 PST"]
[Termination "Zhigalko_Sergei won by resignation"]

1. d4 {[%clk 0:03:00.9]} 1... Nf6 {[%clk 0:02:56.6]} 2. c4 {[%clk 0:02:59.7]}
2... e6 {[%clk 0:02:55.5]} 3. Nc3 {[%clk 0:02:57.6]} 3... Bb4 {[%clk 0:02:54]}
4. e3 {[%clk 0:02:56.3]} 4... O-O {[%clk 0:02:42.5]} 5. Bd3 {[%clk 0:02:56.4]}
5... d5 {[%clk 0:02:41]} 6. cxd5 {[%clk 0:02:54.1]} 6... exd5 {[%clk 0:02:41]}
7. a3 {[%clk 0:02:53.6]} 7... Bd6 {[%clk 0:02:40.6]} 8. Nge2 {[%clk 0:02:53.4]}
8... Re8 {[%clk 0:02:40.2]} 9. O-O {[%clk 0:02:53.5]} 9... a5 {[%clk 0:02:25.2]}
10. Qc2 {[%clk 0:02:51.8]} 10... c6 {[%clk 0:02:24.3]} 11. Rb1 {[%clk
0:02:51.1]} 11... g6 {[%clk 0:02:16.8]} 12. Ng3 {[%clk 0:02:49.7]} 12... Qe7
{[%clk 0:01:25.6]} 13. Bd2 {[%clk 0:02:48.1]} 13... h5 {[%clk 0:01:24.5]} 14. h3
{[%clk 0:02:29.7]} 14... h4 {[%clk 0:01:19.8]} 15. Nge2 {[%clk 0:02:29.7]} 15...
Ne4 {[%clk 0:01:20.2]} 16. Nxe4 {[%clk 0:02:27]} 16... dxe4 {[%clk 0:01:21.1]}
17. Bc4 {[%clk 0:02:27.5]} 17... Bf5 {[%clk 0:01:09.3]} 18. Rbc1 {[%clk
0:02:03.6]} 18... Nd7 {[%clk 0:01:05.4]} 19. Qb3 {[%clk 0:02:02.3]} 19... b5
{[%clk 0:01:01.9]} 20. Bxf7+ {[%clk 0:01:43.1]} 20... Qxf7 {[%clk 0:01:02]} 21.
Qxf7+ {[%clk 0:01:44]} 21... Kxf7 {[%clk 0:01:02.7]} 22. Rxc6 {[%clk 0:01:44.9]}
22... Ke7 {[%clk 0:00:58.3]} 23. Rfc1 {[%clk 0:01:44.5]} 23... Reb8 {[%clk
0:00:54.3]} 24. Nc3 {[%clk 0:01:43.5]} 24... Nf6 {[%clk 0:00:51.8]} 25. f3
{[%clk 0:01:37.7]} 25... b4 {[%clk 0:00:37.6]} 26. axb4 {[%clk 0:01:34.1]} 26...
axb4 {[%clk 0:00:20.1]} 27. Nd1 {[%clk 0:01:28]} 27... Kd7 {[%clk 0:00:17.5]}
28. Nf2 {[%clk 0:01:24.7]} 28... Ra2 {[%clk 0:00:16.9]} 29. fxe4 {[%clk
0:01:21.8]} 29... Nxe4 {[%clk 0:00:16.2]} 30. Be1 {[%clk 0:01:14.2]} 30... Ng3
{[%clk 0:00:14.5]} 31. e4 {[%clk 0:00:33.3]} 31... Ne2+ {[%clk 0:00:14.5]} 32.
Kf1 {[%clk 0:00:33.9]} 32... Nxc1 {[%clk 0:00:15.4]} 33. Rxc1 {[%clk 0:00:34]}
33... Be6 {[%clk 0:00:15.8]} 34. e5 {[%clk 0:00:33.1]} 34... Be7 {[%clk
0:00:16.2]} 35. Ne4 {[%clk 0:00:30.9]} 35... Rxb2 {[%clk 0:00:13.5]} 36. Rd1
{[%clk 0:00:30.4]} 36... Bd5 {[%clk 0:00:13.2]} 37. Nf2 {[%clk 0:00:28.5]} 37...
b3 {[%clk 0:00:13.2]} 38. Nd3 {[%clk 0:00:28.6]} 38... Bxg2+ {[%clk 0:00:10.9]}
39. Kg1 {[%clk 0:00:28.8]} 39... Rc2 {[%clk 0:00:11]} 40. Nf4 {[%clk 0:00:28.8]}
40... b2 {[%clk 0:00:09.1]} 41. e6+ {[%clk 0:00:26.9]} 41... Kd6 {[%clk
0:00:07.8]} 0-1

[Event "Late-Titled-Tuesday-Blitz-February-20-2024"]
[Site "Chess.com"]
[Date "2024.02.20"]
[Round "5"]
[White "Shankland"]
[Black "lucasran"]
[Result "1-0"]
[WhiteElo "2943"]
[BlackElo "2641"]
[TimeControl "180+1"]
[EndTime "14:55:57 PST"]
[Termination "Shankland won on time"]

1. Nf3 {[%clk 0:02:54.9]} 1... Nf6 {[%clk 0:02:59.9]} 2. g3 {[%clk 0:02:54.8]}
2... b6 {[%clk 0:03:00.6]} 3. Bg2 {[%clk 0:02:54.6]} 3... Bb7 {[%clk 0:03:01.4]}
4. O-O {[%clk 0:02:55.2]} 4... g6 {[%clk 0:03:02]} 5. d3 {[%clk 0:02:54.6]} 5...
d5 {[%clk 0:02:45.7]} 6. Nc3 {[%clk 0:02:49.5]} 6... Bg7 {[%clk 0:02:45.2]} 7.
e4 {[%clk 0:02:49.8]} 7... dxe4 {[%clk 0:02:45.5]} 8. dxe4 {[%clk 0:02:42.5]}
8... Qxd1 {[%clk 0:02:28.3]} 9. Rxd1 {[%clk 0:02:43]} 9... Nfd7 {[%clk
0:02:19.8]} 10. Bf4 {[%clk 0:02:30.1]} 10... e5 {[%clk 0:02:10.4]} 11. Be3
{[%clk 0:02:29.4]} 11... Na6 {[%clk 0:01:41]} 12. a3 {[%clk 0:02:25]} 12... c6
{[%clk 0:01:31.3]} 13. Nd2 {[%clk 0:02:24.6]} 13... O-O-O {[%clk 0:01:14.6]} 14.
Nc4 {[%clk 0:02:23.8]} 14... Kc7 {[%clk 0:01:08.4]} 15. Nd6 {[%clk 0:02:12.8]}
15... Rhf8 {[%clk 0:01:07.6]} 16. Rd2 {[%clk 0:02:09.7]} 16... Ndc5 {[%clk
0:01:03.8]} 17. Rad1 {[%clk 0:02:09.7]} 17... Ne6 {[%clk 0:01:04.2]} 18. Nxb7
{[%clk 0:02:07.3]} 18... Rxd2 {[%clk 0:01:00.8]} 19. Rxd2 {[%clk 0:02:07.3]}
19... Kxb7 {[%clk 0:01:00.9]} 20. Rd7+ {[%clk 0:02:07.4]} 20... Nac7 {[%clk
0:00:59.7]} 21. Bh3 {[%clk 0:02:06.2]} 21... Kb8 {[%clk 0:00:51.8]} 22. Ne2
{[%clk 0:02:03.2]} 22... Bf6 {[%clk 0:00:44.4]} 23. f4 {[%clk 0:02:01.9]} 23...
exf4 {[%clk 0:00:41.6]} 24. gxf4 {[%clk 0:01:59.3]} 24... Bxb2 {[%clk
0:00:42.1]} 25. f5 {[%clk 0:01:59.6]} 25... Nc5 {[%clk 0:00:35.6]} 26. Rd6
{[%clk 0:01:44.8]} 26... Nxe4 {[%clk 0:00:31.4]} 27. Rxc6 {[%clk 0:01:44.9]}
27... Nd5 {[%clk 0:00:27.6]} 28. Bh6 {[%clk 0:01:44.9]} 28... Rd8 {[%clk
0:00:22.7]} 29. a4 {[%clk 0:01:41.7]} 29... Be5 {[%clk 0:00:22.5]} 30. Rc4
{[%clk 0:01:38.4]} 30... Nef6 {[%clk 0:00:20.2]} 31. Bg5 {[%clk 0:01:36.5]}
31... Re8 {[%clk 0:00:17.5]} 32. Bg2 {[%clk 0:01:35.3]} 32... Ne7 {[%clk
0:00:11]} 33. fxg6 {[%clk 0:01:33.9]} 33... hxg6 {[%clk 0:00:11.9]} 34. Nd4
{[%clk 0:01:33.7]} 34... Bxd4+ {[%clk 0:00:11]} 35. Rxd4 {[%clk 0:01:33.5]}
35... Nh5 {[%clk 0:00:04.4]} 36. Rd7 {[%clk 0:01:26.8]} 36... f6 {[%clk
0:00:05.1]} 37. Be3 {[%clk 0:01:25.9]} 37... Nf5 {[%clk 0:00:05.5]} 38. Bf2
{[%clk 0:01:25.6]} 38... Nf4 {[%clk 0:00:05.5]} 39. Rb7+ {[%clk 0:01:22.5]}
39... Kc8 {[%clk 0:00:06]} 40. Rxa7 {[%clk 0:01:22.8]} 40... Nxg2 {[%clk
0:00:05.1]} 41. Ra8+ {[%clk 0:01:20.3]} 41... Kd7 {[%clk 0:00:05.4]} 42. Rxe8
{[%clk 0:01:20.8]} 42... Kxe8 {[%clk 0:00:06.2]} 43. Kxg2 {[%clk 0:01:21.4]}
43... Kd7 {[%clk 0:00:06.2]} 44. Bxb6 {[%clk 0:01:21.1]} 44... Kc6 {[%clk
0:00:07]} 45. Bf2 {[%clk 0:01:21]} 45... Ne7 {[%clk 0:00:06.5]} 46. c4 {[%clk
0:01:19.9]} 46... Nf5 {[%clk 0:00:06.8]} 47. Kf3 {[%clk 0:01:17.2]} 47... Nd6
{[%clk 0:00:07.3]} 48. Bd4 {[%clk 0:01:17.4]} 48... f5 {[%clk 0:00:04.4]} 49.
Kf4 {[%clk 0:01:17.6]} 49... Ne4 {[%clk 0:00:03.3]} 50. a5 {[%clk 0:01:16.8]}
50... Kd7 {[%clk 0:00:02.6]} 51. a6 {[%clk 0:01:16.6]} 51... Kc6 {[%clk
0:00:03.2]} 52. h4 {[%clk 0:01:15.3]} 52... Kc7 {[%clk 0:00:02.2]} 53. c5 {[%clk
0:01:12.7]} 53... Kc6 {[%clk 0:00:02.6]} 54. a7 {[%clk 0:01:12]} 54... Kb7
{[%clk 0:00:02.4]} 55. c6+ {[%clk 0:01:12.6]} 55... Ka8 {[%clk 0:00:02.5]} 56.
c7 {[%clk 0:01:12.7]} 56... Nd6 {[%clk 0:00:02.9]} 57. Kg5 {[%clk 0:01:13.3]}
57... Kb7 {[%clk 0:00:01.2]} 58. Kxg6 {[%clk 0:01:13.6]} 58... Nc8 {[%clk
0:00:01.1]} 59. h5 {[%clk 0:01:13.6]} 59... Kxc7 {[%clk 0:00:01.6]} 60. a8=Q
{[%clk 0:01:11.7]} 1-0

[Event "Late-Titled-Tuesday-Blitz-February-20-2024"]
[Site "Chess.com"]
[Date "2024.02.20"]
[Round "5"]
[White "Thjop"]
[Black "Fandorine"]
[Result "1-0"]
[WhiteElo "2613"]
[BlackElo "2916"]
[TimeControl "180+1"]
[EndTime "14:55:59 PST"]
[Termination "Thjop won by resignation"]

1. e4 {[%clk 0:03:00.9]} 1... e5 {[%clk 0:02:51]} 2. Nf3 {[%clk 0:03:00.8]} 2...
Nc6 {[%clk 0:02:50.8]} 3. Bb5 {[%clk 0:03:00.7]} 3... a6 {[%clk 0:02:50.8]} 4.
Ba4 {[%clk 0:03:01]} 4... Nf6 {[%clk 0:02:50]} 5. O-O {[%clk 0:03:00.6]} 5...
Be7 {[%clk 0:02:50]} 6. d3 {[%clk 0:03:00.7]} 6... d6 {[%clk 0:02:46.3]} 7. a3
{[%clk 0:03:00.7]} 7... O-O {[%clk 0:02:46.2]} 8. Nc3 {[%clk 0:03:00.9]} 8...
Bg4 {[%clk 0:02:38.3]} 9. Be3 {[%clk 0:03:00.4]} 9... Nd4 {[%clk 0:02:32.7]} 10.
Bxd4 {[%clk 0:03:00.4]} 10... exd4 {[%clk 0:02:32.9]} 11. Nb1 {[%clk 0:03:00.4]}
11... c5 {[%clk 0:02:27]} 12. Nbd2 {[%clk 0:02:58.2]} 12... b5 {[%clk
0:02:20.4]} 13. Bb3 {[%clk 0:02:58.3]} 13... Nd7 {[%clk 0:02:14.9]} 14. h3
{[%clk 0:02:56]} 14... Bh5 {[%clk 0:02:14.1]} 15. g4 {[%clk 0:02:24.9]} 15...
Bg6 {[%clk 0:02:13.2]} 16. Ne1 {[%clk 0:02:24.9]} 16... Kh8 {[%clk 0:01:47.5]}
17. f4 {[%clk 0:02:24.7]} 17... f6 {[%clk 0:01:45.9]} 18. Ng2 {[%clk 0:02:15.2]}
18... Be8 {[%clk 0:01:27.9]} 19. f5 {[%clk 0:02:06.1]} 19... g5 {[%clk
0:01:22.8]} 20. fxg6 {[%clk 0:02:01.5]} 20... Bxg6 {[%clk 0:01:16]} 21. Nf4
{[%clk 0:02:01.3]} 21... Qb6 {[%clk 0:01:15.3]} 22. Nd5 {[%clk 0:01:51.1]} 22...
Qd8 {[%clk 0:01:14.4]} 23. Nf4 {[%clk 0:01:48]} 23... Qe8 {[%clk 0:01:11.3]} 24.
Nf3 {[%clk 0:01:42.5]} 24... Ne5 {[%clk 0:01:08.8]} 25. Bd5 {[%clk 0:01:35.7]}
25... Rc8 {[%clk 0:01:07.7]} 26. Be6 {[%clk 0:01:06.5]} 26... Rb8 {[%clk
0:01:02.9]} 27. Bd5 {[%clk 0:01:03.1]} 27... Bf7 {[%clk 0:00:47.3]} 28. Bxf7
{[%clk 0:01:00.9]} 28... Rxf7 {[%clk 0:00:46.9]} 29. Nxe5 {[%clk 0:00:51]} 29...
fxe5 {[%clk 0:00:47.8]} 30. Nd5 {[%clk 0:00:49.7]} 30... Bg5 {[%clk 0:00:46.9]}
31. Kg2 {[%clk 0:00:45.4]} 31... Qe6 {[%clk 0:00:41.3]} 32. Qe2 {[%clk
0:00:39.9]} 32... Rbf8 {[%clk 0:00:38]} 33. Rxf7 {[%clk 0:00:39.6]} 33... Rxf7
{[%clk 0:00:38.9]} 34. Rf1 {[%clk 0:00:39.5]} 34... Bf4 {[%clk 0:00:39.1]} 35.
Qf2 {[%clk 0:00:26]} 35... Kg7 {[%clk 0:00:33.3]} 36. Qh4 {[%clk 0:00:22.7]}
36... Bc1 {[%clk 0:00:14.6]} 37. Rxc1 {[%clk 0:00:16.7]} 37... c4 {[%clk
0:00:13.2]} 38. Qg5+ {[%clk 0:00:13.9]} 38... Qg6 {[%clk 0:00:13.1]} 39. Qxg6+
{[%clk 0:00:14]} 39... hxg6 {[%clk 0:00:14]} 40. Rf1 {[%clk 0:00:14.2]} 40...
Rb7 {[%clk 0:00:11.2]} 41. g5 {[%clk 0:00:14.3]} 41... a5 {[%clk 0:00:10.4]} 42.
Rf6 {[%clk 0:00:14.3]} 42... a4 {[%clk 0:00:03.1]} 43. Rxd6 {[%clk 0:00:13.6]}
43... b4 {[%clk 0:00:03.7]} 44. Nxb4 {[%clk 0:00:12.7]} 44... c3 {[%clk
0:00:04.1]} 45. bxc3 {[%clk 0:00:12.9]} 45... dxc3 {[%clk 0:00:04.9]} 46. Rc6
{[%clk 0:00:12.5]} 46... Rf7 {[%clk 0:00:05.8]} 47. Rxc3 {[%clk 0:00:11.8]} 1-0

[Event "Late-Titled-Tuesday-Blitz-February-20-2024"]
[Site "Chess.com"]
[Date "2024.02.20"]
[Round "5"]
[White "igorknyazev"]
[Black "cukricek"]
[Result "0-1"]
[WhiteElo "2204"]
[BlackElo "2456"]
[TimeControl "180+1"]
[EndTime "14:56:00 PST"]
[Termination "cukricek won by checkmate"]

1. e4 {[%clk 0:03:00.9]} 1... c5 {[%clk 0:02:59.8]} 2. f4 {[%clk 0:02:59.7]}
2... d5 {[%clk 0:02:57]} 3. exd5 {[%clk 0:02:59.3]} 3... Nf6 {[%clk 0:02:57.4]}
4. Nf3 {[%clk 0:02:59.4]} 4... Nxd5 {[%clk 0:02:57.5]} 5. d3 {[%clk 0:02:58.2]}
5... Nc6 {[%clk 0:02:56.9]} 6. Be2 {[%clk 0:02:58]} 6... Bg4 {[%clk 0:02:52.3]}
7. h3 {[%clk 0:02:52]} 7... Bxf3 {[%clk 0:02:51.7]} 8. Bxf3 {[%clk 0:02:52]}
8... e6 {[%clk 0:02:52.2]} 9. O-O {[%clk 0:02:51.4]} 9... Be7 {[%clk 0:02:52.4]}
10. Nc3 {[%clk 0:02:50.7]} 10... O-O {[%clk 0:02:52.3]} 11. Ne4 {[%clk 0:02:49]}
11... Rc8 {[%clk 0:02:43.4]} 12. a3 {[%clk 0:02:47.7]} 12... Nd4 {[%clk
0:02:34.5]} 13. c4 {[%clk 0:02:37.1]} 13... Nc7 {[%clk 0:02:04.6]} 14. b4 {[%clk
0:02:22.9]} 14... cxb4 {[%clk 0:01:46.2]} 15. axb4 {[%clk 0:02:22.8]} 15... a6
{[%clk 0:01:46.7]} 16. Rb1 {[%clk 0:01:55.9]} 16... b5 {[%clk 0:01:40.5]} 17.
Be3 {[%clk 0:01:52.8]} 17... Bf6 {[%clk 0:01:09]} 18. Nxf6+ {[%clk 0:01:48.4]}
18... Qxf6 {[%clk 0:01:09.9]} 19. Bb7 {[%clk 0:01:47.6]} 19... Rb8 {[%clk
0:01:08.6]} 20. Be4 {[%clk 0:01:44.2]} 20... Rfd8 {[%clk 0:01:05.5]} 21. Qh5
{[%clk 0:01:42.4]} 21... g6 {[%clk 0:01:03.1]} 22. Qc5 {[%clk 0:01:36.2]} 22...
Nc2 {[%clk 0:00:56.2]} 23. Qxc7 {[%clk 0:01:19.5]} 23... Nxe3 {[%clk 0:00:55.9]}
24. Rf3 {[%clk 0:01:20.2]} 24... Qd4 {[%clk 0:00:48.9]} 25. Qc5 {[%clk
0:01:16.7]} 25... Nc2+ {[%clk 0:00:23.1]} 26. Qxd4 {[%clk 0:01:12.5]} 26... Nxd4
{[%clk 0:00:24]} 27. Rf2 {[%clk 0:00:52.6]} 27... f5 {[%clk 0:00:19.1]} 28. Bf3
{[%clk 0:00:50.7]} 28... Nxf3+ {[%clk 0:00:17.2]} 29. Rxf3 {[%clk 0:00:51]}
29... Rd4 {[%clk 0:00:17.5]} 30. c5 {[%clk 0:00:44.6]} 30... Kf7 {[%clk
0:00:16.1]} 31. Kf2 {[%clk 0:00:43.1]} 31... Rbd8 {[%clk 0:00:14.9]} 32. Ke2
{[%clk 0:00:43.2]} 32... Rc8 {[%clk 0:00:13.1]} 33. g3 {[%clk 0:00:43.4]} 33...
Kf6 {[%clk 0:00:13.6]} 34. Re3 {[%clk 0:00:43.6]} 34... a5 {[%clk 0:00:10.4]}
35. bxa5 {[%clk 0:00:40.8]} 35... Rxc5 {[%clk 0:00:11]} 36. Rxb5 {[%clk
0:00:40.9]} 36... Rxb5 {[%clk 0:00:10.6]} 37. Kd2 {[%clk 0:00:36.9]} 37... Rxa5
{[%clk 0:00:09.5]} 38. Kc3 {[%clk 0:00:36.9]} 38... Rda4 {[%clk 0:00:09.9]} 39.
d4 {[%clk 0:00:28.1]} 39... Ra3+ {[%clk 0:00:09.6]} 40. Kb4 {[%clk 0:00:29]}
40... Rxe3 {[%clk 0:00:10.1]} 41. Kxa5 {[%clk 0:00:29.2]} 41... Rb3 {[%clk
0:00:09]} 42. Ka4 {[%clk 0:00:28.8]} 42... Rb8 {[%clk 0:00:08.4]} 43. d5 {[%clk
0:00:29.7]} 43... exd5 {[%clk 0:00:08.5]} 44. g4 {[%clk 0:00:30.1]} 44... Ke6
{[%clk 0:00:08.1]} 45. g5 {[%clk 0:00:29]} 45... Kd6 {[%clk 0:00:08]} 46. h4
{[%clk 0:00:29.5]} 46... Kc5 {[%clk 0:00:08.4]} 47. Ka3 {[%clk 0:00:29.6]} 47...
Kc4 {[%clk 0:00:08.4]} 48. Ka2 {[%clk 0:00:29.2]} 48... Kc3 {[%clk 0:00:08.7]}
49. h5 {[%clk 0:00:28.1]} 49... Rb7 {[%clk 0:00:07.2]} 50. hxg6 {[%clk
0:00:24.2]} 50... hxg6 {[%clk 0:00:07.6]} 51. Ka1 {[%clk 0:00:23.6]} 51... Kc2
{[%clk 0:00:08]} 52. Ka2 {[%clk 0:00:24.5]} 52... Ra7# {[%clk 0:00:08.1]} 0-1

[Event "Late-Titled-Tuesday-Blitz-February-20-2024"]
[Site "Chess.com"]
[Date "2024.02.20"]
[Round "5"]
[White "RantomOpening"]
[Black "Alex_Sahakyan2006"]
[Result "1-0"]
[WhiteElo "2585"]
[BlackElo "2822"]
[TimeControl "180+1"]
[EndTime "14:56:01 PST"]
[Termination "RantomOpening won by resignation"]

1. c4 {[%clk 0:02:59.9]} 1... c5 {[%clk 0:02:58.5]} 2. Nf3 {[%clk 0:02:59.1]}
2... g6 {[%clk 0:02:59.1]} 3. e4 {[%clk 0:02:58.5]} 3... Bg7 {[%clk 0:02:58]} 4.
d4 {[%clk 0:02:58.9]} 4... cxd4 {[%clk 0:02:54.7]} 5. Nxd4 {[%clk 0:02:59.8]}
5... Nc6 {[%clk 0:02:52.4]} 6. Be3 {[%clk 0:02:59.3]} 6... Qb6 {[%clk
0:02:50.2]} 7. Nb3 {[%clk 0:02:59]} 7... Qc7 {[%clk 0:02:36.9]} 8. Nd4 {[%clk
0:02:48.3]} 8... Qe5 {[%clk 0:02:14.1]} 9. Nxc6 {[%clk 0:02:16.5]} 9... bxc6
{[%clk 0:02:09.5]} 10. Nc3 {[%clk 0:02:14.6]} 10... Rb8 {[%clk 0:02:08.5]} 11.
Rc1 {[%clk 0:01:51.5]} 11... Rxb2 {[%clk 0:02:03.1]} 12. Bd3 {[%clk 0:01:48.9]}
12... Qa5 {[%clk 0:01:19.2]} 13. Bd2 {[%clk 0:01:42]} 13... Qc7 {[%clk
0:00:49.2]} 14. O-O {[%clk 0:01:38.2]} 14... Nf6 {[%clk 0:00:46.8]} 15. Na4
{[%clk 0:01:08.8]} 15... Rxa2 {[%clk 0:00:43.3]} 16. Bb1 {[%clk 0:01:04.6]}
16... Ng4 {[%clk 0:00:23.7]} 17. g3 {[%clk 0:01:03.7]} 17... Rxd2 {[%clk
0:00:20.1]} 18. Qxd2 {[%clk 0:01:01.1]} 18... O-O {[%clk 0:00:20.3]} 19. h3
{[%clk 0:00:47.4]} 19... Ne5 {[%clk 0:00:20]} 20. Kg2 {[%clk 0:00:48.1]} 20...
d6 {[%clk 0:00:14.7]} 21. f4 {[%clk 0:00:45.6]} 21... Nd7 {[%clk 0:00:15.3]} 22.
Bd3 {[%clk 0:00:46.2]} 22... Bb7 {[%clk 0:00:10.8]} 23. Be2 {[%clk 0:00:45]}
23... c5 {[%clk 0:00:10.5]} 24. Bf3 {[%clk 0:00:44.9]} 24... Bd4 {[%clk
0:00:07.9]} 25. Nc3 {[%clk 0:00:44.7]} 25... a6 {[%clk 0:00:06.2]} 26. Ne2
{[%clk 0:00:42.1]} 26... Bg7 {[%clk 0:00:06.2]} 27. Nc3 {[%clk 0:00:42.2]} 27...
e6 {[%clk 0:00:06.3]} 28. h4 {[%clk 0:00:42.7]} 28... Bd4 {[%clk 0:00:06.4]} 29.
h5 {[%clk 0:00:42.7]} 29... Nf6 {[%clk 0:00:04.9]} 30. Qd3 {[%clk 0:00:41.2]}
30... e5 {[%clk 0:00:02.6]} 31. Rh1 {[%clk 0:00:34.6]} 31... Kg7 {[%clk
0:00:03]} 32. f5 {[%clk 0:00:27.3]} 32... g5 {[%clk 0:00:03]} 33. Qd2 {[%clk
0:00:26.3]} 33... Kh8 {[%clk 0:00:03.2]} 34. Qxg5 {[%clk 0:00:26.6]} 34... Ng8
{[%clk 0:00:03.4]} 35. h6 {[%clk 0:00:26.5]} 35... f6 {[%clk 0:00:04.1]} 36.
Qg7+ {[%clk 0:00:26.6]} 36... Qxg7 {[%clk 0:00:04.8]} 37. hxg7+ {[%clk
0:00:27.5]} 37... Kxg7 {[%clk 0:00:05.7]} 38. Nd5 {[%clk 0:00:26.7]} 38... Bxd5
{[%clk 0:00:04.9]} 39. cxd5 {[%clk 0:00:27.6]} 39... Rb8 {[%clk 0:00:04.1]} 40.
Rb1 {[%clk 0:00:28.2]} 40... Rb2+ {[%clk 0:00:04.8]} 41. Rxb2 {[%clk 0:00:28.4]}
41... Bxb2 {[%clk 0:00:05.5]} 42. Rb1 {[%clk 0:00:29.3]} 42... Bd4 {[%clk
0:00:05.9]} 43. Rb7+ {[%clk 0:00:29]} 43... Kh6 {[%clk 0:00:06.6]} 44. Ra7
{[%clk 0:00:29.9]} 44... c4 {[%clk 0:00:07]} 45. Rxa6 {[%clk 0:00:29.8]} 45...
c3 {[%clk 0:00:07.8]} 46. Rxd6 {[%clk 0:00:26]} 46... Ne7 {[%clk 0:00:08.5]} 47.
Bd1 {[%clk 0:00:25.9]} 47... Kg5 {[%clk 0:00:08.3]} 48. Re6 {[%clk 0:00:25.4]}
48... Ng8 {[%clk 0:00:08.1]} 49. d6 {[%clk 0:00:25.4]} 49... Bb6 {[%clk
0:00:06.6]} 50. d7 {[%clk 0:00:25.9]} 50... h5 {[%clk 0:00:07.1]} 51. Rxb6
{[%clk 0:00:25.4]} 1-0